Cogmind - Beta 13 @@@ ROGUE MODE // 2024.04.14 @ 00:49:01 Player: Millea Result: Destroyed by S-43 Plague with Heavy Machine Gun Performance ------------- Evolutions (8) 4000 Regions Visited (26) 5200 Robots Destroyed (491) 2455 Value Destroyed (28025) 28025 Prototype IDs (50) 1000 Alien Tech Used (0) 0 Bonus (13195) 13195 TOTAL SCORE: 53875 Bonus ------- High Alert Combat Kills 3865 Follower Combat Kills 3036 Entered Garrisons 1400 Used RIF Installer 4000 Network Hubs Disabled 200 Aligned with FarCom 300 Met R17 at Cetus 500 Met R17 at Research 2000 Friendly Fire -2106 Cogmind --------- Core Integrity 0/1450 Matter 200/300 Energy 9/100 System Corruption 38% Temperature Cool (0) Movement Walking (120) Location -2/Research Parts ------- > --- POWER (2) -------- (None) > --- PROPULSION (6) --- Advanced Myomer Leg Centrium Leg > --- UTILITY (12) ----- Advanced Powered Armor Advanced Powered Armor > --- WEAPON (3) ------- Force Lance > --- INVENTORY (5) ---- Reinforced Antimatter Reactor Advanced Coolant Injector Medium Reflective Plating Relay Coupler [Brawler] (34) Peak State ------------ > --- POWER ------------ Particle Reactor Micro Antimatter Reactor > --- PROPULSION ------- Myomer Leg Myomer Leg Myomer Leg Myomer Leg Myomer Leg Biometal Leg > --- UTILITY ---------- Advanced Heat Sink Advanced Heat Sink Huge Storage Unit Advanced Targeting Computer Experimental Targeting Computer Improved Target Analyzer Improved Core Shielding Relay Coupler [NC] Relay Coupler [Swarmer] Relay Coupler [Sentry] Relay Coupler [Hunter] Relay Coupler [Behemoth] > --- WEAPON ----------- Compact HERF Cannon Compact HERF Cannon Advanced Remote Datajack > --- INVENTORY -------- Light Antimatter Reactor Advanced Heat Sink Advanced Heat Sink Advanced Heat Sink Advanced Heat Sink Advanced Force Field Improved Remote Force Field Relay Coupler [Grunt] Relay Coupler [Grunt] Relay Coupler [Grunt] Relay Coupler [Brawler] Plasma Rifle Quantum Rifle Quantum Rifle Quantum Rifle Compact HERF Cannon Nova Cannon Nova Cannon Nova Cannon Heavy Machine Gun Railgun Railgun Railgun Fusion Bomb Launcher Force Lance [Rating: 147] Favorites ----------- Power Reinforced Deuterium Engine Engine Reinforced Deuterium Engine Power Core Fission Core Reactor Particle Reactor Propulsion Light Treads Treads Light Treads Leg Flexi-carbon Leg Wheel Wheel Hover Unit Improved Gyrokinetic Inverter Flight Unit Impulse Thruster Utility Experimental Targeting Computer Device Advanced Heat Sink Storage Huge Storage Unit Processor Experimental Targeting Computer Hackware Relay Coupler [NC] Protection Hardened Medium Armor Plating Weapon Cooled Plasma Cannon Energy Gun Force Rifle Energy Cannon Cooled Plasma Cannon Ballistic Gun KE Penetrator Ballistic Cannon Gauss Cannon Launcher Heavy Missile Launcher Special Weapon Remote Datajack Piercing Weapon Force Lance Special Melee Weapon Advanced Datajack Build | -11 -10 -10 -10 -9 -8 -8 -8 -8 -7 -7 -7 -6 -6 -6 -6 -5 -5 -5 -5 -5 -4 -3 -3 -2 -2 -2 ------- Run | Yrd Mat Min Exi Min Mat Gar Mat Gar Fac Gar Fac Fac Gar Fac Gar Fac Ext Cet Arc Hub Fac Res Gar Res Gar Res Slots Evolved 16 | . . . . . 4 . . . 2 . . 2 . . . 2 . . . . 2 2 . 2 . . Power 1 | . . . . . . . . . . . . . . . . . . . . . . . . 1 . . Propulsion 4 | . . . . . . . . . 1 . . 1 . . . . . . . . . 2 . . . . Utility 10 | . . . . . 3 . . . 1 . . 1 . . . 2 . . . . 2 . . 1 . . Weapon 1 | . . . . . 1 . . . . . . . . . . . . . . . . . . . . . Parts Attached 612 | 6 8 2 . . 15 26 23 4 36 32 17 31 21 11 15 42 37 16 4 31 50 51 61 24 16 33 Power 46 | 1 1 . . . . 3 2 . 3 3 1 . 1 2 1 5 1 2 . 2 6 3 2 4 1 2 Engine 15 | 1 1 . . . . 2 2 . 3 . 1 . 1 1 . 2 . . . . 1 . . . . . Core 14 | . . . . . . 1 . . . 3 . . . 1 1 2 1 1 . . 2 . . 2 . . Reactor 17 | . . . . . . . . . . . . . . . . 1 . 1 . 2 3 3 2 2 1 2 Propulsion 151 | 2 1 2 . . 8 6 2 2 6 7 2 7 6 . 5 9 16 2 . 6 13 14 16 4 4 11 Treads 87 | 2 1 . . . 6 6 2 2 6 7 2 2 6 . 5 9 16 2 . 2 . 3 8 . . . Leg 32 | . . . . . . . . . . . . 5 . . . . . . . 2 2 6 6 4 4 3 Wheel 11 | . . 2 . . 2 . . . . . . . . . . . . . . 2 2 . 2 . . 1 Hover 15 | . . . . . . . . . . . . . . . . . . . . . 6 3 . . . 6 Flight 6 | . . . . . . . . . . . . . . . . . . . . . 3 2 . . . 1 Utility 236 | 1 4 . . . 5 8 11 2 15 8 9 14 10 4 5 17 13 5 3 17 18 23 23 8 7 6 Device 82 | . . . . . 2 1 1 . 2 5 1 2 5 . 1 11 2 2 1 7 11 11 12 3 1 1 Storage 10 | 1 3 . . . 1 . . . . . 1 1 . . . . . . . . . 1 1 1 . . Processor 12 | . 1 . . . . . . . . 1 . 1 . . . 1 . . . . 4 1 . 3 . . Hackware 45 | . . . . . . . 6 . 5 . 1 5 2 4 . 2 . . 1 3 . 2 6 . 6 2 Protection 87 | . . . . . 2 7 4 2 8 2 6 5 3 . 4 3 11 3 1 7 3 8 4 1 . 3 Artifact . | . . . . . . . . . . . . . . . . . . . . . . . . . . . Weapon 179 | 2 2 . . . 2 9 8 . 12 14 5 10 4 5 4 11 7 7 1 6 13 11 20 8 4 14 Energy Gun 18 | 1 . . . . . . . . . 2 . 3 . . . . . 2 . 1 5 1 1 . . 2 Energy Cannon 25 | . . . . . . . . . 2 1 . 1 . 3 3 2 2 . . 1 1 1 4 2 1 1 Ballistic Gun 82 | 1 2 . . . 2 6 5 . 6 9 . 4 1 . 1 6 4 5 . 4 2 4 12 2 1 5 Ballistic Cannon 14 | . . . . . . 2 2 . 1 2 1 . 2 1 . 2 1 . . . . . . . . . Launcher 13 | . . . . . . . . . . . 3 . . . . 1 . . . . 2 5 1 . . 1 Special Weapon 23 | . . . . . . 1 1 . 3 . 1 2 1 1 . . . . . . 2 . 2 4 2 3 Impact Weapon . | . . . . . . . . . . . . . . . . . . . . . . . . . . . Slashing Weapon . | . . . . . . . . . . . . . . . . . . . . . . . . . . . Piercing Weapon 2 | . . . . . . . . . . . . . . . . . . . . . . . . . . 2 Special Melee Weapon 2 | . . . . . . . . . . . . . . . . . . . 1 . 1 . . . . . Unidentified Prototypes 18 | . . . . . . . 1 . . . . 3 1 1 . 2 . 4 . 1 . 3 . . . 2 Corrupted Parts 5 | . . . . . . . . . . . . . . . . . . . . . 1 . . 1 1 2 System Corruption 20 | . . . . . . . . . . . . . . . . . . . . . 3 . . 4 5 8 Parts Lost 267 | . 1 . . . 4 13 5 1 16 24 2 26 5 2 7 25 11 3 . 24 29 9 21 4 3 32 Power 23 | . 1 . . . . 2 1 . 2 3 1 1 . . 1 2 . . . 1 2 . 1 1 . 4 Propulsion 70 | . . . . . 2 3 1 1 3 9 . 2 1 . 2 6 3 . . 4 10 . 7 2 2 12 Utility 97 | . . . . . 1 5 2 . 7 3 . 10 3 1 3 9 5 3 . 13 9 7 9 1 1 5 Weapon 77 | . . . . . 1 3 1 . 4 9 1 13 1 1 1 8 3 . . 6 8 2 4 . . 11 Highest Loss Streak 24 | . 1 . . . 4 4 5 1 10 11 1 24 2 1 5 12 4 2 . 15 11 8 13 2 1 22 To Critical Strikes 6 | . . . . . . . 1 . . 1 . . . . . . 1 . . . 2 . 1 . . . Average Slot Usage (%) 86 | . 98 100 100 100 79 80 80 80 82 73 84 89 85 83 85 94 99 91 81 80 55 86 83 94 97 69 Engine 4 | . 14 14 14 14 9 8 9 9 6 . 5 6 6 5 . 1 . . . . . . . . . . Core 1 | . . . . . . . . . . 4 1 . . . 5 2 2 3 . . 1 . . 2 . . Reactor 1 | . . . . . . . . . . . . . . . . . 2 1 5 5 1 3 3 4 8 4 Treads 15 | . 28 11 . . 16 18 17 18 22 17 22 11 16 20 19 20 23 15 11 10 . 3 10 . . . Leg 3 | . . . . . . . . . . . . 12 5 . . . . . . 2 1 14 5 25 24 13 Device 7 | . . . . . 4 1 6 9 6 11 2 5 10 . 5 14 4 12 12 9 15 6 16 9 10 5 Storage 6 | . 25 14 14 14 9 9 9 9 7 7 3 4 6 6 6 5 5 5 5 5 2 3 4 4 4 3 Processor 6 | . 1 14 14 14 . . . . . 3 . 3 6 6 6 9 7 5 5 5 13 21 14 19 15 8 Hackware 7 | . . . . . . . 2 . 5 2 4 13 1 16 7 12 11 11 8 10 . 5 4 14 15 16 Protection 10 | . . . . . 13 16 9 8 9 1 23 9 12 6 12 5 20 14 11 10 1 6 4 . 4 2 Energy Gun 2 | . 4 . . . . . . . . 2 . 7 10 5 . . . 1 3 . 3 2 . . . . Energy Cannon 3 | . . . . . . . . . 3 5 . 1 . 1 18 3 8 . . . 1 . 3 5 8 4 Ballistic Gun 9 | . 23 28 28 28 25 23 16 18 15 6 . 3 1 5 1 7 5 14 11 14 1 6 9 4 . 2 Ballistic Cannon 1 | . . . . . . 3 8 9 1 5 6 . 2 1 . 4 1 . . . . . . . . . Special Weapon 1 | . . . . . . . 1 . 1 . 4 5 1 3 . . . . . . . . . 2 3 2 Naked Turns 40 | . . . . . . . . . . . . . . . . . . . . . . . . . . 40 Heaviest Build 150 | 13 53 28 28 28 29 43 40 40 43 34 63 132 149 136 130 129 150 137 142 145 131 128 113 130 132 129 Greatest Support 210 | 40 40 40 20 20 40 40 40 40 60 60 60 76 100 100 100 109 109 160 160 160 46 210 210 140 153 153 Greatest Overweight (x) 12 | 4 1 1 1 1 1 1 . . . 4 1 3 2 1 1 5 1 1 . 12 6 1 6 1 1 6 Average Overweight (x) . | . . . 1 1 . . . . . . . . 1 1 1 . 1 . . 1 . . 1 . . . Largest Inventory Capacity 40 | 8 20 15 15 15 40 40 40 40 40 40 40 40 25 25 25 25 25 25 25 25 25 20 20 25 25 25 Average Capacity 27 | 7 12 15 15 15 40 40 40 40 40 40 25 29 25 25 25 25 25 25 25 25 13 16 20 24 25 21 Most Carried 40 | 6 14 14 15 15 29 40 40 40 40 40 40 40 25 25 25 25 25 25 25 25 16 20 20 24 25 25 Average Carried 24 | 4 7 14 14 15 14 36 38 39 38 34 22 27 24 24 23 21 24 24 24 17 7 13 19 22 24 19 Final Capacity 40 | 8 15 15 15 15 40 40 40 40 40 40 40 40 25 25 25 25 25 25 25 25 25 20 20 25 25 5 Final Carried 40 | 6 14 14 15 15 29 40 40 40 39 38 40 38 25 24 25 25 25 25 25 9 9 18 20 22 25 5 Class Distribution -------------------- 21% | Scavenger-Tank 14% | Hauler-Tank 14% | Scavenger-Gunner 8% | Mutant 7% | Bothacker-Tank 4% | Commander-Tank 4% | Hauler-Gunner 3% | Botlord-Gunner Dominant Class ---------------- Mutant | -10/Materials Mutant | -10/Mines Mutant | -10/Exiles Mutant | -9/Mines Hauler-Tank | -8/Materials Hauler-Tank | -8/Garrison Hauler-Tank | -8/Materials Hauler-Tank | -8/Garrison Hauler-Tank | -7/Factory Hauler-Gunner | -7/Garrison Scavenger-Tank | -7/Factory Scavenger-Tank | -6/Factory Bothacker-Tank | -6/Garrison Botlord-Gunner | -6/Factory Scavenger-Tank | -6/Garrison Scavenger-Gunner | -5/Factory Scavenger-Tank | -5/Extension Scavenger-Tank | -5/Cetus Scavenger-Tank | -5/Archives Scavenger-Gunner | -5/Hub_04(d) Scavenger-Gunner | -4/Factory Hacker-Gunner | -3/Research Scavenger-Gunner | -3/Garrison Scavenger-Gunner | -2/Research Scavenger-Gunner | -2/Garrison Botlord-Gunner | -2/Research Resources | -11 -10 -10 -10 -9 -8 -8 -8 -8 -7 -7 -7 -6 -6 -6 -6 -5 -5 -5 -5 -5 -4 -3 -3 -2 -2 -2 ----------- Run | Yrd Mat Min Exi Min Mat Gar Mat Gar Fac Gar Fac Fac Gar Fac Gar Fac Ext Cet Arc Hub Fac Res Gar Res Gar Res Matter Collected 17612 | 258 272 147 . . 689 623 1207 522 1103 723 421 910 634 329 243 1830 934 598 342 887 371 966 2179 505 235 684 Remotely 1777 | . . . . . . . . . 43 . . . . . . . . . . 308 . 359 1067 . . . Salvage Created 23062 | . 494 49 . . 736 1153 1224 494 1087 713 194 754 1425 467 1617 2359 2042 598 569 1315 556 694 2449 829 542 702 Parts 1021 | . 35 4 . . 48 73 88 24 58 24 13 31 73 11 38 108 68 22 28 65 27 18 86 30 18 31 Haulers Intercepted 13 | . 1 . . . 2 . 3 . . . 1 . . 1 . 3 . . . 2 . . . . . . Recyclers Shooed 9 | . . . . . 1 . . . . . . . . . . 3 1 . . . . 1 . 1 . 2 Parts Field Recycled . | . . . . . . . . . . . . . . . . . . . . . . . . . . . Retrieved Matter . | . . . . . . . . . . . . . . . . . . . . . . . . . . . Parts Self-Destructed . | . . . . . . . . . . . . . . . . . . . . . . . . . . . Prevented . | . . . . . . . . . . . . . . . . . . . . . . . . . . . Kills | -11 -10 -10 -10 -9 -8 -8 -8 -8 -7 -7 -7 -6 -6 -6 -6 -5 -5 -5 -5 -5 -4 -3 -3 -2 -2 -2 ------- Run | Yrd Mat Min Exi Min Mat Gar Mat Gar Fac Gar Fac Fac Gar Fac Gar Fac Ext Cet Arc Hub Fac Res Gar Res Gar Res Combat Hostiles Destroyed 410 | . 10 3 . . 17 29 31 11 19 18 7 12 27 8 30 42 28 8 4 13 15 15 41 8 6 8 Melee 2 | . . . . . . . . . . . . . . . . . . . . 1 1 . . . . . Guns 238 | . 10 3 . . 17 29 17 7 13 13 1 9 26 4 2 13 8 8 4 12 9 5 20 4 . 4 Cannons 117 | . . . . . . . 14 4 6 5 6 2 . 3 26 20 17 . . . . 1 6 3 4 . AOE 38 | . . . . . . . . . . . . 1 . . . 7 . . . . 5 9 14 . . 2 Classes Destroyed 23 | . 7 . . . 4 2 1 . 1 2 . . 2 1 . 2 . . . . . 1 . . . . Worker 17 | . 1 . . . . . 4 . . . . . . 1 . 3 . . . 5 . . . 1 . 2 Builder 9 | . . . . . . . 2 . 2 . 1 . . . . 2 1 . . 1 . . . . . . Tunneler 5 | . 1 . . . . . . . . . . . . . . 2 . . . 1 1 . . . . . Hauler 13 | . 1 . . . 2 . 3 . . . 1 . . 1 . 3 . . . 2 . . . . . . Recycler 7 | . . . . . . . . . 2 . . . . . . 1 3 . . 1 . . . . . . Mechanic 2 | . . . . . . . . . . . . . . . . 2 . . . . . . . . . . Operator 11 | . 2 . . . 1 . . . . . . 1 . . . . . . 6 . . . . 1 . . Watcher 16 | . 2 . . . . . 1 . 1 . . 1 . 1 . 2 2 2 . 2 . . . 1 . 1 Swarmer 89 | . 3 3 . . 7 8 11 . 4 . 4 . 9 2 7 . 5 . . 2 9 4 9 . 2 . Cutter 2 | . . . . . . 1 . . . . . . 1 . . . . . . . . . . . . . Saboteur 1 | . . . . . . . . . . . . . . 1 . . . . . . . . . . . . Grunt 171 | . 7 . . . 4 5 13 6 7 9 2 4 9 4 17 29 11 3 . 5 . 4 23 3 4 2 Brawler 11 | . . . . . 1 1 1 . . 1 . 1 . . . 1 1 . . . . . 3 . 1 . Duelist 9 | . . . . . 1 2 . . 1 . . . 1 . 1 2 . . . . . . 1 . . . Protector 2 | . . . . . . . . . . 1 . . . . . . . . . 1 . . . . . . Sentry 59 | . . . . . 3 10 6 3 2 3 1 1 3 . 5 2 7 . 4 1 . 1 3 2 . 2 Demolisher 4 | . . . . . . . . . . 1 . . . . . . . . . . . 3 . . . . Specialist 7 | . . . . . . . . . . . . . . . . 3 . . . 2 . . 1 1 . . Hunter 19 | . . . . . 1 . . 2 2 3 . 2 . . . 1 3 . . . 1 . . 2 . 2 Programmer 24 | . . . . . . 2 . . 3 . . 4 1 1 . 2 . . . . 5 1 1 1 . 3 Heavy 4 | . . . . . . . . . . . . . 2 . . 2 . . . . . . . . . . Behemoth 4 | . . . . . . . . . . . . . 1 . . . 1 . . . . 1 1 . . . Cetus Guard 5 | . . . . . . . . . . . . . . . . . . 5 . . . . . . . . Lightning 2 | . . . . . . . . . . . . . . . . . . . . 2 . . . . . . Striker 1 | . . . . . . . . . . . . . . . . . . . . . . 1 . . . . Thug 1 | . . . . . . . . . . . . . . . . . . 1 . . . . . . . . Best Kill Streak 17 | . 3 3 . . 3 4 8 3 5 6 3 4 5 3 9 14 5 4 3 8 5 6 17 3 3 4 Combat Bots Only 17 | . 3 3 . . 3 4 8 3 4 6 2 3 5 2 9 9 5 4 3 4 5 6 17 2 3 2 Max Kills in Single Turn 6 | . 1 1 . . 1 2 1 1 2 1 1 1 2 1 2 3 2 1 1 2 3 3 6 2 1 2 Gunslinging 1 | . . . . . . 1 . . . . . . 1 . . . . . . 1 . . . . . . Exploded 5 | . . . . . . . . . . . . 1 . . . 2 . . . . 3 3 5 . . 1 Melee 1 | . . . . . . . . . . . . . . . . . . . . 1 1 . . . . . Uniques/NPCs Destroyed 1 | . . . . . . . . . . . . . . . . . . . . . . 1 . . . . Revision 17++ (-3/Research) Combat | -11 -10 -10 -10 -9 -8 -8 -8 -8 -7 -7 -7 -6 -6 -6 -6 -5 -5 -5 -5 -5 -4 -3 -3 -2 -2 -2 -------- Run | Yrd Mat Min Exi Min Mat Gar Mat Gar Fac Gar Fac Fac Gar Fac Gar Fac Ext Cet Arc Hub Fac Res Gar Res Gar Res Hostile Shots Fired 4142 | . 55 22 . 7 107 119 138 67 259 406 38 139 291 69 281 290 231 47 19 333 350 143 346 60 44 281 Missed 1200 | . 18 8 . 2 33 27 38 21 93 95 15 35 91 23 88 82 63 4 9 56 147 39 73 25 16 99 Damage Taken 53301 | . 467 148 . 64 1168 1600 1208 520 2276 3351 300 909 1997 989 2621 5267 3077 961 270 6013 3051 4228 6191 1018 735 4872 Core 5727 | . 38 32 . 29 97 249 66 42 224 418 46 114 95 112 236 343 228 13 . 324 840 443 268 91 18 1361 Absorbed by Shields 2817 | . . . . . . . 96 184 116 127 . 305 550 126 10 51 343 65 . 132 . 242 470 . . . Reduced by Siege Mode 1954 | . . . . . . . . . . . . . . . 80 . . 21 . 210 . 462 1181 . . . Redirected to Shielding 487 | . . . . . 51 42 . . . . . . . . 29 37 14 . . . 145 6 103 . 7 53 Ignored by Resistances 742 | . . . . . . . . . . . . 6 23 . 93 28 . . . 456 136 . . . . . Regen/Repaired (Parts) 134 | . . . . . . . 93 . . . 2 39 . . . . . . . . . . . . . . Core Remaining (%) 36 | 100 . . . 60 . . . 17 . . 1 . . . 34 . . . . 9 26 . 45 . . . Volleys Fired 1614 | . 62 8 . . 86 100 111 36 90 91 29 65 130 31 73 123 93 33 36 65 42 42 128 40 31 69 Largest 3 | . 2 2 . . 3 3 3 3 3 3 3 3 3 3 3 3 3 3 3 3 3 3 3 3 3 3 Hottest 243 | . 60 40 . . 60 119 96 94 143 170 176 160 208 152 105 243 138 225 150 218 240 223 226 218 223 188 Shots Fired 3576 | . 124 16 . . 247 266 248 92 214 183 65 116 204 67 141 330 238 95 97 180 52 85 296 72 47 101 Gun 2491 | . 124 16 . . 247 252 150 58 157 126 4 67 155 36 15 184 77 92 97 172 44 69 238 28 6 77 Cannon 910 | . . . . . . 14 68 34 40 57 54 23 36 23 126 134 161 3 . 8 4 9 34 30 33 19 Launcher 49 | . . . . . . . . . . . 1 . . . . 12 . . . . 4 7 22 . . 3 Special 126 | . . . . . . . 30 . 17 . 6 26 13 8 . . . . . . . . 2 14 8 2 Kinetic 2591 | . 101 16 . . 247 266 218 92 174 141 54 47 55 26 15 282 98 94 72 171 17 59 238 28 6 74 Thermal 721 | . 23 . . . . . . . 23 42 4 43 136 33 126 36 140 1 25 9 21 10 34 12 . 3 Explosive 45 | . . . . . . . . . . . 1 . . . . 12 . . . . . 7 22 . . 3 Electromagnetic 93 | . . . . . . . . . . . . . . . . . . . . . 14 9 . 18 33 19 Robot Hit Streak 29 | . 15 7 . . 13 17 11 9 8 14 13 10 19 16 26 24 25 12 21 12 16 17 29 13 9 19 Robot Miss Streak 9 | . 3 1 . . 3 3 9 4 7 2 8 3 4 5 2 2 5 3 3 3 2 2 2 4 2 2 Penetration Max 2 | . . . . . . . 1 . 1 1 . . . . . 1 1 1 1 1 . 1 2 . . 1 Secondary Targets 42 | . 2 1 . . 7 4 2 . 3 1 . . 6 . . 4 . 2 . 4 . 1 5 . . . Max Gunslinging Chain 1 | . 1 1 . . 1 1 1 . 1 1 . . 1 . . 1 . 1 . 1 . 1 1 . . . Shots Hit Robots 2431 | . 83 12 . . 153 172 135 54 132 135 25 81 133 45 99 248 167 71 65 130 42 64 225 55 31 74 Core Hits 1058 | . 29 5 . . 57 74 66 24 55 48 12 23 46 15 47 125 62 30 25 56 25 40 124 23 14 33 Critical Kills 32 | . . . . . . 1 . . . . . 1 4 . 1 2 4 3 3 5 . . 6 2 . . Critical Parts Destroyed 49 | . . . . . 2 1 . . 1 . . 1 5 . 1 1 3 1 4 12 . 1 11 1 . 4 Critical Strikes 119 | . . . . . 2 3 5 2 1 1 3 3 10 . 2 16 14 6 8 17 . 1 17 3 1 4 Meltdown 7 | . . . . . . . . . . . . . . . 1 2 3 . . . . . 1 . . . Destroy 81 | . . . . . 2 2 . . 1 1 . 3 9 . 1 1 6 6 8 17 . 1 16 3 . 4 Blast 30 | . . . . . . 1 5 2 . . 3 . 1 . . 13 5 . . . . . . . . . Corrupt 1 | . . . . . . . . . . . . . . . . . . . . . . . . . 1 . Melee Attacks 2 | . . . . . . . . . . . . . . . . . . . 2 . . . . . . . Impact . | . . . . . . . . . . . . . . . . . . . . . . . . . . . Slashing . | . . . . . . . . . . . . . . . . . . . . . . . . . . . Piercing . | . . . . . . . . . . . . . . . . . . . . . . . . . . . Sneak Attacks 2 | . . . . . . . . . . . . . . . . . . . 2 . . . . . . . Combat Hostiles . | . . . . . . . . . . . . . . . . . . . . . . . . . . . Follow-up Attacks . | . . . . . . . . . . . . . . . . . . . . . . . . . . . Damage Inflicted 63416 | . 992 147 . . 1372 1625 2533 975 2241 2799 767 1449 2768 1128 3258 8778 5526 2084 1762 3866 2340 3035 8675 1534 962 2800 Guns 35258 | . 992 147 . . 1372 1574 1456 617 1526 1795 82 1058 2430 715 316 3365 1418 2014 1762 3635 1127 1453 4187 521 151 1545 Cannons 18858 | . . . . . . 51 1077 358 715 1001 685 386 338 413 2932 3164 3970 70 . 220 112 182 852 997 811 524 Explosions 9118 | . . . . . . . . . . . . . . . . 2230 83 . . . 1043 1395 3636 . . 731 Melee . | . . . . . . . . . . . . . . . . . . . . . . . . . . . Ramming 182 | . . . . . . . . . . 3 . 5 . . 10 19 55 . . 11 58 5 . 16 . . Kinetic 36286 | . 788 147 . . 1372 1625 2533 975 1828 2037 685 786 490 461 316 5529 1844 2084 1261 3615 359 1203 4187 521 151 1489 Thermal 16027 | . 204 . . . . . . . 413 759 82 658 2278 667 2932 1000 3627 . 501 240 1089 250 852 419 . 56 Explosive 8400 | . . . . . . . . . . . . . . . . 2230 . . . . 408 1395 3636 . . 731 Electromagnetic 2521 | . . . . . . . . . . . . . . . . . . . . . 426 182 . 578 811 524 Impact . | . . . . . . . . . . . . . . . . . . . . . . . . . . . Slashing . | . . . . . . . . . . . . . . . . . . . . . . . . . . . Piercing . | . . . . . . . . . . . . . . . . . . . . . . . . . . . Highest Corruption 38 | . . . . . . 1 10 10 4 4 4 1 2 6 6 6 6 6 6 16 10 10 16 10 19 38 Average Corruption 5 | . . . . . . 1 8 10 2 4 4 1 1 2 6 4 6 6 4 13 6 7 12 5 15 25 Corruption Purged 6 | . . . . . . . . . . . . . . . . . . . 6 . . . . . . . Corruption Blocked . | . . . . . . . . . . . . . . . . . . . . . . . . . . . Effects 652 | . . . . . . 10 70 20 26 20 23 23 27 20 46 32 96 19 6 17 20 15 82 11 30 39 Message Errors 131 | . . . . . . . 18 2 5 5 4 6 7 3 8 4 24 4 2 4 6 2 10 1 9 7 Matter Fused 150 | . . . . . . 4 9 5 8 6 5 2 5 8 9 8 23 6 1 4 3 2 19 4 10 9 Heat Flow Errors 68 | . . . . . . 2 7 2 1 3 3 2 3 1 4 3 12 . . . 2 3 11 2 2 5 Energy Discharges 80 | . . . . . . 3 7 4 4 2 4 2 5 3 4 3 13 4 3 2 3 1 10 . 2 1 Parts Rejected 9 | . . . . . . . 2 1 . . . . . 1 1 1 . . . 1 1 1 . . . . Parts Fused 7 | . . . . . . . 1 . . . 1 2 1 . . . . . . . . . 2 . . . Data Loss (minor) 86 | . . . . . . 1 5 . 3 1 4 4 4 3 14 6 16 1 . . 2 4 8 2 4 4 Data Loss (major) 27 | . . . . . . . 5 1 1 1 1 1 . 1 3 1 3 1 . 1 . 1 4 1 . 1 Misfires 28 | . . . . . . . 5 3 2 . 1 3 2 . . 2 2 1 . . . . 4 1 1 1 Alerts 18 | . . . . . . . 3 . 1 . . 1 . . 1 1 2 1 . . 2 1 4 . . 1 Misdirections 7 | . . . . . . . 1 . . . . . . . . . . . . . 1 . . . 1 4 Weapon Failures 41 | . . . . . . . 7 2 1 2 . . . . 2 3 1 1 . 5 . . 10 . 1 6 Overload Shots 8 | . . . . . . . . . . . . . . . . 3 1 1 . 1 2 . . . . . Effects 2 | . . . . . . . . . . . . . . . . 1 . . . 1 . . . . . . Heat Surge 2 | . . . . . . . . . . . . . . . . 1 . . . 1 . . . . . . Overflow Damage 568 | . . . . . . . 46 . 1 . . . . . 22 94 113 . . . 63 110 101 18 . . Projectiles 229 | . . . . . . . 46 . 1 . . . . . 22 84 41 . . . 2 15 . 18 . . Explosions 310 | . . . . . . . . . . . . . . . . 10 43 . . . 61 95 101 . . . Melee 29 | . . . . . . . . . . . . . . . . . 29 . . . . . . . . . Knockbacks 25 | . . . . . . . 5 . 2 . 2 . 2 1 . 13 . . . . . . . . . . Impact . | . . . . . . . . . . . . . . . . . . . . . . . . . . . Kinetic 24 | . . . . . . . 5 . 2 . 2 . 2 1 . 12 . . . . . . . . . . Secondary 1 | . . . . . . . . . . . . . . . . 1 . . . . . . . . . . Self-Inflicted Damage 630 | . . . . . . 75 . . . . . . . . . 138 . . . . 121 33 263 . . . Shots 14 | . . . . . . 1 . . . . . . . . . 5 . . . . 2 2 4 . . . Rammed 38 | . . . . . . . . . . 2 . 2 . . 1 5 3 . . . 25 . . . . . Targets Rammed 44 | . . . . . . . . . . 2 . 3 . . 1 6 4 . . 1 25 1 . 1 . . Kicked 3 | . . . . . . . . . . . . 1 . . . . . . . . . 1 . 1 . . Crushed 3 | . . . . . . . . . . . . . . . . 1 1 . . 1 . . . . . . Highest Temperature 432 | . 159 . . . 93 279 325 318 276 372 398 327 343 306 203 278 343 271 199 432 404 342 289 212 82 279 Average Temperature 102 | . 71 . . . 40 47 74 128 103 145 154 102 108 83 53 66 107 114 88 172 166 128 102 66 25 101 Received Heat Transfer 9860 | . 291 . . 36 279 477 450 214 621 1059 21 200 367 202 1186 1257 337 99 36 1105 21 103 932 63 135 369 Effects 35 | . . . . . . 2 1 2 . 1 4 4 2 . . . 3 . . 9 . 3 4 . . . Shutdowns 4 | . . . . . . . . . . . . . . . . . 1 . . 2 . 1 . . . . Energy Bleed 8 | . . . . . . 1 1 . . 1 1 . . . . . 1 . . 2 . 1 . . . . Interference 17 | . . . . . . 1 . 2 . . 3 4 1 . . . . . . 2 . . 4 . . . Matter Decay 2 | . . . . . . . . . . . . . 1 . . . . . . 1 . . . . . . Short Circuit 1 | . . . . . . . . . . . . . . . . . . . . 1 . . . . . . Damage (minor) 3 | . . . . . . . . . . . . . . . . . 1 . . 1 . 1 . . . . Siege Activations 11 | . . . . . . . . . . . . . . . 1 . . 1 1 1 . 2 5 . . . Total Turns 417 | . . . . . . . . . . . . . . . 56 . . 30 1 57 . 84 189 . . . Longest Duration 72 | . . . . . . . . . . . . . . . 56 . . 30 1 57 . 67 72 . . . Robots Corrupted 5 | . . . . . . . . . . . . . . . . . . . . . . . . 1 2 2 Combat Hostiles 5 | . . . . . . . . . . . . . . . . . . . . . . . . 1 2 2 Parts Fried 21 | . . . . . . . . . . . . . . . . . . . . 1 1 . . 5 9 5 Impact Corruptions 1 | . . . . . . . . . . . . . . . . . 1 . . . . . . . . . Robots Melted 12 | . . . . . . . . . . . . . 1 1 2 2 5 . . . . . 1 . . . Combat Hostiles 10 | . . . . . . . . . . . . . 1 1 2 2 3 . . . . . 1 . . . Parts Melted 66 | . . . . . . . . . 3 1 . 4 20 1 16 1 11 . 1 . 5 . 3 . . . Heat Transferred 23119 | . 450 . . . . . . . 666 1087 175 999 3404 964 4600 1510 5550 . 703 367 1081 305 814 370 . 74 Parts Sabotaged . | . . . . . . . . . . . . . . . . . . . . . . . . . . . Parts Stolen . | . . . . . . . . . . . . . . . . . . . . . . . . . . . Parts Stripped . | . . . . . . . . . . . . . . . . . . . . . . . . . . . Power Chain Reactions 1 | . . . . . . . . . . . . . . . . . . . . . 1 . . . . . Alert | -11 -10 -10 -10 -9 -8 -8 -8 -8 -7 -7 -7 -6 -6 -6 -6 -5 -5 -5 -5 -5 -4 -3 -3 -2 -2 -2 ------- Run | Yrd Mat Min Exi Min Mat Gar Mat Gar Fac Gar Fac Fac Gar Fac Gar Fac Ext Cet Arc Hub Fac Res Gar Res Gar Res Peak Influence 1576 | . 155 86 . . 265 1576 791 498 352 245 306 98 1331 879 1299 1142 568 418 227 273 332 430 1316 923 810 456 Initial 768 | . . 16 . . . 172 768 106 261 2 128 . 60 698 546 681 491 299 93 . 32 147 74 740 307 455 Average 370 | . 64 83 . . 120 877 189 331 71 127 161 24 611 736 991 866 286 291 109 109 143 171 669 659 553 313 Maximum Alert Level 4 | . . . . . 1 4 3 2 1 1 1 . 4 3 4 4 2 2 1 1 1 2 4 3 3 2 Low Security (%) 46 | 100 100 100 . 100 81 3 78 18 82 81 65 100 21 . . . 41 . 66 88 66 58 7 . . 11 Level 1 15 | . . . . . 18 17 . 37 17 18 34 . 9 . . . 22 95 33 11 33 27 26 10 22 74 Level 2 16 | . . . . . . 16 19 44 . . . . 35 33 18 26 36 4 . . . 13 3 43 57 13 Level 3 15 | . . . . . . 36 2 . . . . . 19 66 48 65 . . . . . . 50 46 20 . Level 4 5 | . . . . . . 26 . . . . . . 14 . 33 8 . . . . . . 11 . . . Level 5 . | . . . . . . . . . . . . . . . . . . . . . . . . . . . High Security . | . . . . . . . . . . . . . . . . . . . . . . . . . . . Max Security . | . . . . . . . . . . . . . . . . . . . . . . . . . . . Squads Dispatched 78 | . 2 . . . 4 . 3 . 5 . 1 8 . 11 . 12 5 1 . 5 4 4 . 7 . 6 Investigation 11 | . . . . . . . . . 1 . . . . . . 2 1 1 . 1 1 . . 2 . 2 Extermination 15 | . . . . . . . . . 3 . 1 4 . 2 . 2 . . . 1 1 . . . . 1 Reinforcement 34 | . 2 . . . . . 3 . 1 . . 4 . 1 . 5 4 . . 3 2 4 . 2 . 3 Assault 6 | . . . . . . . . . . . . . . 3 . 3 . . . . . . . . . . Garrison 12 | . . . . . 4 . . . . . . . . 5 . . . . . . . . . 3 . . Intercept . | . . . . . . . . . . . . . . . . . . . . . . . . . . . Searches Triggered . | . . . . . . . . . . . . . . . . . . . . . . . . . . . Construction Impeded 7 | . . . . . . . . . . . . . . . . 1 2 . . 1 2 . . . . 1 Haulers Reinforced 3 | . . . . . . . . . . . . . . 1 . . . . . . . 2 . . . . Active Scanning Responses . | . . . . . . . . . . . . . . . . . . . . . . . . . . . Cargo Convoy Interrupts . | . . . . . . . . . . . . . . . . . . . . . . . . . . . Stealth | -11 -10 -10 -10 -9 -8 -8 -8 -8 -7 -7 -7 -6 -6 -6 -6 -5 -5 -5 -5 -5 -4 -3 -3 -2 -2 -2 --------- Run | Yrd Mat Min Exi Min Mat Gar Mat Gar Fac Gar Fac Fac Gar Fac Gar Fac Ext Cet Arc Hub Fac Res Gar Res Gar Res Distress Signals 36 | . . . . . 6 . 8 . . . . . . . . 1 3 2 . . 2 10 . 1 . 3 Communications Jammed . | . . . . . . . . . . . . . . . . . . . . . . . . . . . Distress Signals . | . . . . . . . . . . . . . . . . . . . . . . . . . . . Times Spotted 714 | . 22 10 . 3 26 36 44 10 24 20 13 34 35 32 32 64 41 14 26 24 43 33 44 24 25 35 Peak Tracking Total 14 | . 3 8 . 3 5 5 10 5 4 6 4 4 4 5 10 9 5 5 1 12 9 9 14 4 5 10 Tactical Retreats 40 | . 1 . . . . . . 2 . 1 . 1 . . 2 8 2 1 . 5 9 2 2 1 . 3 Traps | -11 -10 -10 -10 -9 -8 -8 -8 -8 -7 -7 -7 -6 -6 -6 -6 -5 -5 -5 -5 -5 -4 -3 -3 -2 -2 -2 ------- Run | Yrd Mat Min Exi Min Mat Gar Mat Gar Fac Gar Fac Fac Gar Fac Gar Fac Ext Cet Arc Hub Fac Res Gar Res Gar Res Traps Triggered 31 | . . . . . . 2 1 . 2 2 . . 7 1 3 1 3 . . . . 5 . . 2 2 Indirectly . | . . . . . . . . . . . . . . . . . . . . . . . . . . . Trap Hack Attempts . | . . . . . . . . . . . . . . . . . . . . . . . . . . . Triggered . | . . . . . . . . . . . . . . . . . . . . . . . . . . . Disarmed . | . . . . . . . . . . . . . . . . . . . . . . . . . . . Reprogrammed . | . . . . . . . . . . . . . . . . . . . . . . . . . . . Reused . | . . . . . . . . . . . . . . . . . . . . . . . . . . . Traps Extracted . | . . . . . . . . . . . . . . . . . . . . . . . . . . . Installed . | . . . . . . . . . . . . . . . . . . . . . . . . . . . Triggered 1 | . . . . . . . . . . . . . . . . . . . . . 1 . . . . . Machines | -11 -10 -10 -10 -9 -8 -8 -8 -8 -7 -7 -7 -6 -6 -6 -6 -5 -5 -5 -5 -5 -4 -3 -3 -2 -2 -2 ---------- Run | Yrd Mat Min Exi Min Mat Gar Mat Gar Fac Gar Fac Fac Gar Fac Gar Fac Ext Cet Arc Hub Fac Res Gar Res Gar Res Machines Disabled 79 | . . . . . . 10 2 2 . 4 1 4 11 4 5 3 2 3 3 2 6 . 12 1 3 1 Max in Single Turn 4 | . . . . . . 2 1 1 . 1 1 1 2 1 2 1 1 1 1 1 4 . 2 . 1 . Garrison Relay 25 | . . . . . . 6 . 2 . 3 . . 4 . 3 . . . . . . . 4 . 3 . Phase Generator 4 | . . . . . . 1 . . . . . . 1 . 1 . . . . . . . 1 . . . Network Hub 1 | . . . . . . . . . . . . . . . . . . . . 1 . . . . . . Energy Cycler 2 | . . . . . . . . . . . . . . . . . 2 . . . . . . . . . Machines Repaired . | . . . . . . . . . . . . . . . . . . . . . . . . . . . Machines Dismantled . | . . . . . . . . . . . . . . . . . . . . . . . . . . . Machines Sabotaged 1 | . . . . . . . . . . . . . . . . . . . . 1 . . . . . . Overloaded Fab Kills . | . . . . . . . . . . . . . . . . . . . . . . . . . . . Hacking | -11 -10 -10 -10 -9 -8 -8 -8 -8 -7 -7 -7 -6 -6 -6 -6 -5 -5 -5 -5 -5 -4 -3 -3 -2 -2 -2 --------- Run | Yrd Mat Min Exi Min Mat Gar Mat Gar Fac Gar Fac Fac Gar Fac Gar Fac Ext Cet Arc Hub Fac Res Gar Res Gar Res Machines Accessed 81 | . 6 . 2 . 3 3 6 1 6 2 2 8 2 3 2 3 5 3 1 2 7 5 2 4 . 3 Terminals 52 | . 5 . . . 2 3 4 1 4 2 1 4 2 1 2 1 5 3 . 2 1 1 2 3 . 3 Fabricators 5 | . . . . . . . . . 1 . . . . 1 . 2 . . . . 1 . . . . . Repair Stations 4 | . . . . . . . 1 . . . 1 1 . . . . . . . . 1 . . . . . Recycling Units 7 | . 1 . . . . . . . . . . 1 . . . . . . . . 4 1 . . . . Scanalyzers 3 | . . . . . . . . . . . . 1 . . . . . . . . . 2 . . . . Garrison Access 7 | . . . . . 1 . 1 . 1 . . 1 . 1 . . . . . . . 1 . 1 . . Total Hacks 252 | . 27 . 2 . 5 6 18 2 13 5 4 26 4 5 4 5 10 11 22 10 31 19 4 9 . 10 Successful 119 | . 17 . 2 . 1 1 10 1 5 2 3 13 1 1 1 2 4 2 22 7 12 7 2 1 . 2 Failed 131 | . 9 . . . 4 5 7 1 8 3 1 13 3 4 3 3 6 9 . 3 19 12 2 8 . 8 Catastrophic 27 | . . . . . 2 1 1 . 3 . . 2 1 . 1 1 3 3 . . 1 2 . 4 . 2 Database Lockouts 2 | . 1 . . . . . 1 . . . . . . . . . . . . . . . . . . . Manual 109 | . 22 . 1 . 3 . 14 . 7 4 . 13 . 1 . 2 3 . . 9 15 5 . 3 . 7 Terminals 150 | . 22 . . . 3 6 15 2 8 5 2 16 4 1 4 2 10 11 . 10 5 2 4 8 . 10 Fabricators 17 | . . . . . . . . . 4 . . . . 3 . 3 . . . . 7 . . . . . Repair Stations 12 | . . . . . . . 2 . . . 2 5 . . . . . . . . 3 . . . . . Recycling Units 27 | . 5 . . . . . . . . . . 1 . . . . . . . . 16 5 . . . . Scanalyzers 14 | . . . . . . . . . . . . 3 . . . . . . . . . 11 . . . . Garrison Access 8 | . . . . . 2 . 1 . 1 . . 1 . 1 . . . . . . . 1 . 1 . . Terminal Hacks 67 | . 9 . 2 . . 1 5 1 3 1 1 4 1 . 1 1 3 2 22 4 3 . 2 . . 1 Record 25 | . . . 1 . . . . . . . . . . . . . . 2 22 . . . . . . . Robot Analysis 8 | . 4 . . . . . 1 . 2 . . . . . . . 1 . . . . . . . . . Prototype ID Bank 4 | . 1 . . . . . 1 . . . . 1 . . . . 1 . . . . . . . . . Open Door 2 | . . . . . . 1 . . . . . . . . . . . . . . . . 1 . . . Level Access Points 1 | . . . . . . . . . . . . . . . . . . . . . 1 . . . . . Branch Access Points 3 | . 1 . . . . . . . . . 1 1 . . . . . . . . . . . . . . Emergency Access Points 3 | . . . . . . . . . . . . 1 1 . 1 . . . . . . . . . . . Terminal Index 1 | . . . . . . . . . . . . . . . . . . . . 1 . . . . . . Recycling Unit Index 1 | . . . . . . . . . . . . 1 . . . . . . . . . . . . . . Garrison Index 1 | . . . . . . . . . 1 . . . . . . . . . . . . . . . . . Unreport Threat 7 | . 1 . . . . . 3 . . . . . . . . 1 1 . . . . . . . . 1 Locate Traps 1 | . . . . . . . . . . . . . . . . . . . . 1 . . . . . . Patrol Status 1 | . . . . . . . . . . . . . . . . . . . . . 1 . . . . . Transport Status 1 | . . . . . . . . . . . . . . . . . . . . . 1 . . . . . Investigation Status 1 | . 1 . . . . . . . . . . . . . . . . . . . . . . . . . Hauler Manifests 1 | . 1 . . . . . . . . . . . . . . . . . . . . . . . . . Zone Layout 2 | . . . . . . . . . . . . . . . . . . . . 2 . . . . . . Garrison Registry 3 | . . . . . . . . 1 . 1 . . . . . . . . . . . . 1 . . . Derelict Proto ID Bank 1 | . . . 1 . . . . . . . . . . . . . . . . . . . . . . . Fabricator Hacks 3 | . . . . . . . . . 1 . . . . . . 1 . . . . 1 . . . . . Network Status 2 | . . . . . . . . . 1 . . . . . . . . . . . 1 . . . . . Build 1 | . . . . . . . . . . . . . . . . 1 . . . . . . . . . . Repair Station Hacks 8 | . . . . . . . 2 . . . 2 3 . . . . . . . . 1 . . . . . Scan Component 5 | . . . . . . . 1 . . . 1 2 . . . . . . . . 1 . . . . . Repair 3 | . . . . . . . 1 . . . 1 1 . . . . . . . . . . . . . . Recycling Unit Hacks 1 | . . . . . . . . . . . . . . . . . . . . . 1 . . . . . Retrieve Components 1 | . . . . . . . . . . . . . . . . . . . . . 1 . . . . . Scanalyzer 6 | . . . . . . . . . . . . . . . . . . . . . . 6 . . . . Insert Component 2 | . . . . . . . . . . . . . . . . . . . . . . 2 . . . . Analyze 4 | . . . . . . . . . . . . . . . . . . . . . . 4 . . . . Garrison Access Hacks 7 | . . . . . 1 . 1 . 1 . . 1 . 1 . . . . . . . 1 . 1 . . Unlock Access 7 | . . . . . 1 . 1 . 1 . . 1 . 1 . . . . . . . 1 . 1 . . Unauthorized Hacks 27 | . 8 . . . . . 2 . . 1 . 5 . . . . 1 . . 3 6 . . . . 1 Terminals 17 | . 5 . . . . . 2 . . 1 . 4 . . . . 1 . . 3 . . . . . 1 Botnet 15 | . 5 . . . . . 2 . . 1 . 3 . . . . 1 . . 2 . . . . . 1 Operators 1 | . . . . . . . . . . . . 1 . . . . . . . . . . . . . . Sabotage 1 | . . . . . . . . . . . . . . . . . . . . 1 . . . . . . Fabricators . | . . . . . . . . . . . . . . . . . . . . . . . . . . . Repair Stations . | . . . . . . . . . . . . . . . . . . . . . . . . . . . Recycling Units 10 | . 3 . . . . . . . . . . 1 . . . . . . . . 6 . . . . . Monitor 2 | . 1 . . . . . . . . . . . . . . . . . . . 1 . . . . . Reject 4 | . 1 . . . . . . . . . . . . . . . . . . . 3 . . . . . Mask 4 | . 1 . . . . . . . . . . 1 . . . . . . . . 2 . . . . . Scanalyzers . | . . . . . . . . . . . . . . . . . . . . . . . . . . . Garrison Access . | . . . . . . . . . . . . . . . . . . . . . . . . . . . Data Cores Recovered 1 | . . . . . . . . . . . . . . . . . . . . . . . . 1 . . Used . | . . . . . . . . . . . . . . . . . . . . . . . . . . . Hacking Detections 68 | . 6 . . . 3 3 5 1 5 2 . 5 2 3 2 2 5 3 . 1 7 4 2 4 . 3 Full Trace Events 11 | . . . . . . 2 . . 1 1 . . 1 . . 1 1 1 . . . . . 2 . 1 Feedback Events 1 | . . . . . . . . . . . . . . . . . . . . . . . . 1 . . Corruption 1 | . . . . . . . . . . . . . . . . . . . . . . . . 1 . . Feedback Blocked . | . . . . . . . . . . . . . . . . . . . . . . . . . . . Robot Schematics Acquired . | . . . . . . . . . . . . . . . . . . . . . . . . . . . Robots Built . | . . . . . . . . . . . . . . . . . . . . . . . . . . . Authchips . | . . . . . . . . . . . . . . . . . . . . . . . . . . . Time . | . . . . . . . . . . . . . . . . . . . . . . . . . . . Total Robot Build Rating . | . . . . . . . . . . . . . . . . . . . . . . . . . . . Part Schematics Acquired 2 | . . . . . . . . . . . . . . . . . . . . . . 2 . . . . Parts Built 1 | . . . . . . . . . . . . . . . . 1 . . . . . . . . . . Authchips . | . . . . . . . . . . . . . . . . . . . . . . . . . . . Time 53 | . . . . . . . . . . . . . . . . 53 . . . . . . . . . . Total Part Build Rating 6 | . . . . . . . . . . . . . . . . 6 . . . . . . . . . . Parts Repaired 3 | . . . . . . . 1 . . . 1 1 . . . . . . . . . . . . . . Time 123 | . . . . . . . 32 . . . 61 30 . . . . . . . . . . . . . . Parts Recycled . | . . . . . . . . . . . . . . . . . . . . . . . . . . . Recycled Matter . | . . . . . . . . . . . . . . . . . . . . . . . . . . . Retrieved Matter . | . . . . . . . . . . . . . . . . . . . . . . . . . . . Retrieved Components 10 | . . . . . . . . . . . . . . . . . . . . . 10 . . . . . Parts Scanalyzed 2 | . . . . . . . . . . . . . . . . . . . . . . 2 . . . . Part Schematics Acquired 2 | . . . . . . . . . . . . . . . . . . . . . . 2 . . . . Parts Damaged . | . . . . . . . . . . . . . . . . . . . . . . . . . . . Bothacking | -11 -10 -10 -10 -9 -8 -8 -8 -8 -7 -7 -7 -6 -6 -6 -6 -5 -5 -5 -5 -5 -4 -3 -3 -2 -2 -2 ------------ Run | Yrd Mat Min Exi Min Mat Gar Mat Gar Fac Gar Fac Fac Gar Fac Gar Fac Ext Cet Arc Hub Fac Res Gar Res Gar Res Used RIF Installer 8 | . . . . . . 1 . 1 . 1 . . 1 . 1 . . . . . . . 1 . 2 . Hotswap 1 | . . . . . . . . . . 1 . . . . . . . . . . . . . . . . Command Fork 2 | . . . . . . . . . . . . . 1 . . . . . . . . . . . 1 . Threat Obfuscator 1 | . . . . . . . . 1 . . . . . . . . . . . . . . . . . . Program Shield 1 | . . . . . . . . . . . . . . . 1 . . . . . . . . . . . Autooverride 1 | . . . . . . . . . . . . . . . . . . . . . . . . . 1 . Autoassimilate 1 | . . . . . . . . . . . . . . . . . . . . . . . 1 . . . Robots Hacked 77 | . . . . . . . 12 . 3 . 4 18 5 7 . . . . 2 . . . 2 10 10 4 Non-combat 35 | . . . . . . . 12 . 3 . 4 9 . 4 . . . . 2 . . . . 1 . . Combat 42 | . . . . . . . . . . . . 9 5 3 . . . . . . . . 2 9 10 4 Autooverrided 2 | . . . . . . . . . . . . . . . . . . . . . . . . . . 2 Autoassimilated 7 | . . . . . . . . . . . . . . . . . . . . . . . . 3 4 . Robot Hacks Applied 94 | . . . . . . . 20 . 10 . 4 18 11 8 . . . . 2 . . . 2 11 6 2 parse_system 10 | . . . . . . . 1 . 2 . . 2 . 3 . . . . . . . . . 1 1 . no_distress 1 | . . . . . . . . . 1 . . . . . . . . . . . . . . . . . generate_echo 1 | . . . . . . . 1 . . . . . . . . . . . . . . . . . . . find_chute 3 | . . . . . . . . . . . . 3 . . . . . . . . . . . . . . deconstruct_machine 1 | . . . . . . . . . . . . 1 . . . . . . . . . . . . . . hold_bot 1 | . . . . . . . 1 . . . . . . . . . . . . . . . . . . . map_earth 1 | . . . . . . . . . . . . 1 . . . . . . . . . . . . . . ignore_parts 3 | . . . . . . . 1 . 1 . . 1 . . . . . . . . . . . . . . purge_threat 9 | . . . . . . . 4 . 2 . . . . . . . . . . . . . . 3 . . locate_traps 2 | . . . . . . . 1 . 1 . . . . . . . . . . . . . . . . . reprogram_traps 1 | . . . . . . . 1 . . . . . . . . . . . . . . . . . . . block_reporting 1 | . . . . . . . . . . . . . . . . . . . . . . . . 1 . . clear_repairs 1 | . . . . . . . . . 1 . . . . . . . . . . . . . . . . . map_route 1 | . . . . . . . 1 . . . . . . . . . . . . . . . . . . . mark_security 1 | . . . . . . . . . . . 1 . . . . . . . . . . . . . . . relay_feed 1 | . . . . . . . 1 . . . . . . . . . . . . . . . . . . . find_shortcuts 2 | . . . . . . . . . . . . . 2 . . . . . . . . . . . . . find_garrison 1 | . . . . . . . . . . . . . . . . . . . . . . . . . . 1 scatter_targeting 2 | . . . . . . . . . . . . . 2 . . . . . . . . . . . . . link_complan 1 | . . . . . . . . . . . . . 1 . . . . . . . . . . . . . disrupt_area 3 | . . . . . . . . . . . . . 2 . . . . . . . . . . 1 . . spike_heat 2 | . . . . . . . . . . . . . 2 . . . . . . . . . . . . . amplify_resonance 2 | . . . . . . . . . . . . 2 . . . . . . . . . . . . . . go_dormant 1 | . . . . . . . . . . . . 1 . . . . . . . . . . . . . . overwrite_iff 1 | . . . . . . . . . . . . . . . . . . . . . . . . 1 . . streamctrl_high 3 | . . . . . . . . . . . . 2 . . . . . . . . . . 1 . . . formatsys_low 19 | . . . . . . . 8 . 2 . 3 1 . 3 . . . . 2 . . . . . . . formatsys_high 19 | . . . . . . . . . . . . 4 2 2 . . . . . . . . 1 4 5 1 Relay Couplers Released 102 | . . . . . . 24 . 9 . 12 . . 14 . 12 . . . . . . . 16 . 15 . Machine Destruction 102 | . . . . . . 24 . 9 . 12 . . 14 . 12 . . . . . . . 16 . 15 . Attached 35 | . . . . . . . 6 . 2 . 1 5 2 4 . 1 . . . . . . 6 . 6 2 Fabnet Peak Effective % . | . . . . . . . . . . . . . . . . . . . . . . . . . . . Robots Rewired 34 | . . . . . . 2 . . . 3 . . 3 . 3 . 23 . . . . . . . . . Allies Hacked 2 | . . . . . . . . . . . . 1 . 1 . . . . . . . . . . . . Hacks Repelled . | . . . . . . . . . . . . . . . . . . . . . . . . . . . Allies | -11 -10 -10 -10 -9 -8 -8 -8 -8 -7 -7 -7 -6 -6 -6 -6 -5 -5 -5 -5 -5 -4 -3 -3 -2 -2 -2 -------- Run | Yrd Mat Min Exi Min Mat Gar Mat Gar Fac Gar Fac Fac Gar Fac Gar Fac Ext Cet Arc Hub Fac Res Gar Res Gar Res Total Allies 100 | . . . . . . 2 8 . 2 3 3 7 7 5 3 . 24 . 3 . . 3 5 10 11 4 Largest Group 14 | . . . . . . 2 5 2 2 3 3 4 5 7 3 3 14 8 3 2 . 3 5 6 6 5 Highest-Rated Group 409 | . . . . . . 70 73 19 37 60 60 82 226 266 90 90 409 231 121 81 . 138 294 341 385 298 Highest-Rated Ally 148 | . . . . . . 39 39 10 26 20 20 47 95 95 30 30 39 39 45 45 . 46 64 89 148 148 Total Orders 54 | . . . . . . . 7 5 3 . 5 17 7 1 . . 4 . 1 1 . . 2 . 1 . STAY 23 | . . . . . . . . 3 1 . . 10 4 1 . . 1 . . 1 . . 1 . 1 . FOLLOW 15 | . . . . . . . . 2 . . . 5 3 . . . 3 . 1 . . . 1 . . . DROP 6 | . . . . . . . 2 . 1 . 1 2 . . . . . . . . . . . . . . PICKUP 10 | . . . . . . . 5 . 1 . 4 . . . . . . . . . . . . . . . Ally Attacks 611 | . . . . . . 29 8 . . . 10 52 40 91 . 25 94 42 . . . 20 9 37 98 56 Total Damage 13777 | . . . . . . 346 75 . . . 239 889 328 3082 . 751 1565 624 . . . 434 279 1184 2096 1885 Kills 96 | . . . . . . 7 2 . . . 4 6 7 17 . 3 18 4 . . . 2 1 6 14 5 Allies Corrupted 5 | . . . . . . . . . . . . 1 . . . . . . . . . . . 1 1 2 Allies Melted 2 | . . . . . . . . . . . . 1 . . . . 1 . . . . . . . . . Intel | -11 -10 -10 -10 -9 -8 -8 -8 -8 -7 -7 -7 -6 -6 -6 -6 -5 -5 -5 -5 -5 -4 -3 -3 -2 -2 -2 ------- Run | Yrd Mat Min Exi Min Mat Gar Mat Gar Fac Gar Fac Fac Gar Fac Gar Fac Ext Cet Arc Hub Fac Res Gar Res Gar Res Robot Analysis Total 8 | . 4 . . . . . 1 . 2 . . . . . . . 1 . . . . . . . . . Derelict Logs Recovered . | . . . . . . . . . . . . . . . . . . . . . . . . . . . Drone Launches . | . . . . . . . . . . . . . . . . . . . . . . . . . . . Drone Recoveries . | . . . . . . . . . . . . . . . . . . . . . . . . . . . Exploration | -11 -10 -10 -10 -9 -8 -8 -8 -8 -7 -7 -7 -6 -6 -6 -6 -5 -5 -5 -5 -5 -4 -3 -3 -2 -2 -2 ------------- Run | Yrd Mat Min Exi Min Mat Gar Mat Gar Fac Gar Fac Fac Gar Fac Gar Fac Ext Cet Arc Hub Fac Res Gar Res Gar Res Turns Passed 34099 | 72 1276 307 412 34 653 1559 2130 538 1806 1050 926 3699 2502 1541 1745 1719 4023 634 970 509 909 1583 1844 472 612 574 Spaces Moved 15396 | 41 602 217 429 35 215 678 1016 253 858 383 419 1657 796 519 574 490 1300 284 419 138 1090 1186 816 265 361 355 Core 518 | 17 . . . . . . . . . 3 . . . . . . . . . . 370 1 . . . 127 Treads 10410 | 24 602 66 . . 213 678 1016 253 858 380 419 1050 608 519 574 490 1300 284 419 117 . 130 410 . . . Legs 2529 | . . . . . . . . . . . . 607 188 . . . . . . 7 7 699 209 265 361 186 Wheels 1032 | . . 151 429 35 2 . . . . . . . . . . . . . . 14 204 . 197 . . . Hover 241 | . . . . . . . . . . . . . . . . . . . . . 158 55 . . . 28 Flight 666 | . . . . . . . . . . . . . . . . . . . . . 351 301 . . . 14 Fastest Speed 25 | 50 160 95 95 95 95 160 160 160 160 160 160 160 190 246 246 167 240 160 160 155 25 30 120 120 118 40 Average Speed 167 | 140 170 114 95 95 159 171 160 161 162 178 165 187 242 246 249 242 243 167 160 182 59 96 160 125 133 95 Slowest Speed 570 | 250 240 160 95 95 240 240 160 165 165 250 240 330 320 246 250 570 247 240 160 380 310 270 330 190 190 390 Overloaded Moves . | . . . . . . . . . . . . . . . . . . . . . . . . . . . Propulsion Burnouts . | . . . . . . . . . . . . . . . . . . . . . . . . . . . Robots Hopped 7 | . . . . . . . . . . . . . . . . . . . . . 6 1 . . . . Cave-ins Triggered . | . . . . . . . . . . . . . . . . . . . . . . . . . . . Exploration Rate (%) 44 | 4 95 69 63 14 20 88 76 44 17 45 9 24 83 13 62 12 85 82 96 15 27 26 76 7 48 10 Regions Visited 26 Branch Regions 7 Pre-discovered Areas 1 | . . . 1 . . . . . . . . . . . . . . . . . . . . . . . Known Exits Taken 9 | . 1 . . . 1 . 1 . 1 . . 1 . 1 . . . . . . 1 1 . 1 . . Unknown Exits Taken 10 | 1 . 1 1 1 . . . . . . 1 . . . . 1 1 1 1 1 . . . . . . Scrap Searched . | . . . . . . . . . . . . . . . . . . . . . . . . . . . Spaces Dug 22 | . . . . . . . 2 . . . . . . . . 18 2 . . . . . . . . . Terrain Destroyed 1070 | . . . . . . 163 35 . 4 2 14 3 69 3 66 188 63 10 22 44 58 66 191 3 . 66 Melee . | . . . . . . . . . . . . . . . . . . . . . . . . . . . Projectile 255 | . . . . . . . 35 . 4 2 5 3 . 3 . 51 34 10 22 43 4 3 21 3 . 12 AOE 811 | . . . . . . 163 . . . . 9 . 69 . 66 137 29 . . . 54 63 169 . . 52 Terrain Rammed . | . . . . . . . . . . . . . . . . . . . . . . . . . . . Walls Destroyed . | . . . . . . . . . . . . . . . . . . . . . . . . . . . Machines Disabled . | . . . . . . . . . . . . . . . . . . . . . . . . . . . Actions | -11 -10 -10 -10 -9 -8 -8 -8 -8 -7 -7 -7 -6 -6 -6 -6 -5 -5 -5 -5 -5 -4 -3 -3 -2 -2 -2 --------- Run | Yrd Mat Min Exi Min Mat Gar Mat Gar Fac Gar Fac Fac Gar Fac Gar Fac Ext Cet Arc Hub Fac Res Gar Res Gar Res Total 21005 | 54 736 259 435 35 370 923 1335 313 1112 622 616 2156 1189 740 764 797 1983 398 670 261 1291 1536 1122 349 453 486 Wait 1961 | . 46 31 . 1 16 34 122 13 95 40 80 341 147 140 45 89 143 31 188 21 57 193 44 8 25 11 Move 15363 | 40 601 216 428 34 215 677 1015 252 858 382 418 1657 795 519 573 489 1300 283 418 137 1077 1184 815 265 360 355 Hop 7 | . . . . . . . . . . . . . . . . . . . . . 6 1 . . . . Pick Up 541 | 8 11 . 3 . 32 53 42 4 28 31 51 37 27 17 13 35 31 13 8 5 15 25 35 7 5 5 Fast Attach 225 | 4 4 . . . 2 9 4 1 5 1 11 19 5 4 2 9 11 5 3 7 27 35 27 6 8 16 Attach 206 | 2 1 . . . 7 10 6 1 18 23 1 2 6 3 9 25 10 3 . 16 17 13 16 3 1 13 Detach 26 | . 2 . . . . . . . . . 4 2 1 . . . . 1 . . 6 7 1 . 1 1 Swap 181 | . 3 2 . . 6 7 13 2 13 8 5 10 10 4 4 8 16 8 1 8 6 3 18 15 7 4 Drop 348 | . 6 . 4 . 6 28 20 4 5 6 16 17 26 20 2 13 40 21 12 1 13 31 37 4 5 11 Fire 1614 | . 62 8 . . 86 100 111 36 90 91 29 65 130 31 73 123 93 33 36 65 42 42 128 40 31 69 Melee 2 | . . . . . . . . . . . . . . . . . . . 2 . . . . . . . Ram 26 | . . . . . . . . . . . . . . . . . . . . . 25 . . . . 1 Kick 3 | . . . . . . . . . . . . 1 . . . . . . . . . 1 . 1 . . Crush 16 | . . . . . . . . . . 2 . 2 . . 1 6 4 . . 1 . . . . . . Escape Stasis 33 | . . . . . . . . . . 4 . . 7 . 5 . 6 . . . . 1 . . 10 . Rewire 453 | . . 2 . . . 5 2 . . 34 1 3 35 2 37 . 329 . 2 . . . 1 . . . Trap . | . . . . . . . . . . . . . . . . . . . . . . . . . . . Miscellaneous . | . . . . . . . . . . . . . . . . . . . . . . . . . . . Route ------- -11/Scrapyard -10/Materials (discovered 4 exits: [*Mat x3] / *Min) -10/Mines (discovered 2 exits: [*Mat] / *Exi) -10/Exiles -9/Mines -8/Materials (discovered 3 exits: [*Sto x2] / Gar) -8/Garrison (discovered 3 exits: *Mat x3) -8/Materials (discovered 4 exits: *Fac x2 / [*Sto] / Gar) -8/Garrison (discovered 4 exits: *Fac x3 / [Mat]) -7/Factory (discovered 2 exits: *Fac / Gar) -7/Garrison (discovered 3 exits: *Fac x3) -7/Factory (discovered 3 exits: *Fac / Low x2) -6/Factory (discovered 4 exits: *Fac / Low x2 / Gar) -6/Garrison (discovered 4 exits: *Fac x4) -6/Factory (discovered 2 exits: *Fac / Gar) -6/Garrison (discovered 2 exits: *Fac x2) -5/Factory (discovered 2 exits: *Fac / *Ext) -5/Extension (discovered 3 exits: *Fac x2 / *Cet) -5/Cetus (discovered 2 exits: *Fac / *Arc) -5/Archives (discovered 3 exits: *Fac / *Hub x2) -5/Hub_04(d) -4/Factory (discovered 5 exits: *Res x4 / *Upp) -3/Research (discovered 2 exits: *Res / Gar) -3/Garrison (discovered 3 exits: *Res x3) -2/Research -2/Garrison (discovered 3 exits: [*Acc x2] / *Res) -2/Research History --------- Turn | Location | Event 9 | -11/Scrapyard | Discovered new exit (range 16) 73 | -11/Scrapyard | Entered Materials 305 | -10/Materials | Build established: Mutant 472 | -10/Materials | Discovered new exit (range 15) 710 | -10/Materials | Discovered new exit (range 16) 1049 | -10/Materials | Discovered new exit (range 13) 1068 | -10/Materials | Central database locked down 1068 | -10/Materials | Identified exit to Mines 1349 | -10/Materials | Entered Mines 1461 | -10/Mines | Assembled infested the area 1563 | -10/Mines | Met 8R-AWN 1578 | -10/Mines | Discovered new exit (range 7) 1652 | -10/Mines | Discovered new exit (range 5) 1656 | -10/Mines | Entered Exiles 1680 | -10/Exiles | Welcomed by 8R-AWN 1696 | -10/Exiles | Met EX-HEX 1723 | -10/Exiles | Met EX-BIN 1734 | -10/Exiles | Aligned with FarCom system 1735 | -10/Exiles | Given EX-Vault access code 1762 | -10/Exiles | Opened EX-Vault 1770 | -10/Exiles | Found Cloak of Protection 1792 | -10/Exiles | Warned to stay clear of 0b10 Research branches 1829 | -10/Exiles | Learned about 8R-AWN's background 1865 | -10/Exiles | Met EX-DEC 1875 | -10/Exiles | Learned location of Zion (-7) 1948 | -10/Exiles | Found Lightpack 2.0 2057 | -10/Exiles | Discovered new exit (range 14) 2068 | -10/Exiles | Stole two prototypes: Lightpack 2.0, Cloak of Protection 2068 | -10/Exiles | Entered Mines 2099 | -9/Mines | Discovered new exit (range 3) 2102 | -9/Mines | Entered Materials 2102 | -8/Materials | Evolved 4 slots: Utility x3, Weapon x1 2145 | -8/Materials | Discovered new exit (range 15) 2175 | -8/Materials | Garrison activated, responded to threat 2297 | -8/Materials | Garrison activated, responded to threat 2401 | -8/Materials | Build established: Hauler-Tank 2467 | -8/Materials | Lost 4 parts (2n1u1w) 2591 | -8/Materials | Discovered new exit (range 7) 2755 | -8/Materials | Identified exit to Garrison 2755 | -8/Materials | Entered Garrison 2817 | -8/Garrison | Phase Generator disabled 2838 | -8/Garrison | Build established: Hauler-Skirmisher 2892 | -8/Garrison | Installed Relay Interface Framework 2903 | -8/Garrison | Triggered checkpoint 3012 | -8/Garrison | Lost 4 parts (1p2n1w) 3104 | -8/Garrison | Garrison Relay disabled 3185 | -8/Garrison | Triggered checkpoint 3236 | -8/Garrison | Core integrity fell below 50% 3259 | -8/Garrison | Triggered checkpoint 3267 | -8/Garrison | Build established: Hauler-Tank 3310 | -8/Garrison | Garrison Relay disabled 3331 | -8/Garrison | Triggered checkpoint 3442 | -8/Garrison | Garrison Relay disabled 3465 | -8/Garrison | Garrison Relay disabled 3510 | -8/Garrison | Discovered new exit (range 14) 3629 | -8/Garrison | Triggered checkpoint 3691 | -8/Garrison | Triggered checkpoint 3727 | -8/Garrison | Garrison Relay disabled 3828 | -8/Garrison | Discovered new exit (range 12) 3937 | -8/Garrison | Triggered checkpoint 4132 | -8/Garrison | Discovered new exit (range 11) 4258 | -8/Garrison | Garrison Relay disabled 4314 | -8/Garrison | Entered Materials 4314 | -8/Materials | Accompanied by 1 ally 4553 | -8/Materials | Lost 4 allies 4679 | -8/Materials | System corruption reached 10% 4716 | -8/Materials | Destroyed 8 combat bots 4719 | -8/Materials | Lost 5 parts (1p1n2u1w) 5173 | -8/Materials | Repaired Hvy. Assault Rifle 5255 | -8/Materials | Discovered new exit (range 15) 5556 | -8/Materials | Discovered new exit (range 16) 5886 | -8/Materials | Discovered new exit (range 9) 6062 | -8/Materials | Central database locked down 6439 | -8/Materials | Identified exit to Garrison 6444 | -8/Materials | Entered Garrison 6444 | -8/Garrison | Accompanied by 2 allies 6498 | -8/Garrison | Triggered checkpoint 6542 | -8/Garrison | Garrison Relay disabled 6559 | -8/Garrison | Discovered new exit (range 76) 6559 | -8/Garrison | Discovered new exit (range 31) 6559 | -8/Garrison | Discovered new exit (range 62) 6559 | -8/Garrison | Discovered new exit (range 63) 6707 | -8/Garrison | Core integrity fell below 20% 6752 | -8/Garrison | Triggered checkpoint 6800 | -8/Garrison | Triggered checkpoint 6839 | -8/Garrison | Expanded RIF knowledge: Threat Obfuscation 6876 | -8/Garrison | Triggered checkpoint 6910 | -8/Garrison | Garrison Relay disabled 6982 | -8/Garrison | Entered Factory 6982 | -7/Factory | Accompanied by 1 ally 6982 | -7/Factory | Evolved 2 slots: Propulsion x1, Utility x1 6984 | -7/Factory | FarCom data flow suspended 7608 | -7/Factory | Lost 5 parts (1p3u1w) 7801 | -7/Factory | Discovered new exit (range 15) 8457 | -7/Factory | Lost 10 parts (1p3n3u3w) 8664 | -7/Factory | Build established: Hauler-Gunner 8788 | -7/Factory | Identified exit to Garrison 8788 | -7/Factory | Entered Garrison 8806 | -7/Garrison | Discovered new exit (range 76) 8806 | -7/Garrison | Discovered new exit (range 60) 8806 | -7/Garrison | Discovered new exit (range 59) 8900 | -7/Garrison | Lost 3 parts (1p1n1w) 8926 | -7/Garrison | Garrison Relay disabled 9092 | -7/Garrison | Triggered checkpoint 9118 | -7/Garrison | Core integrity fell below 50% 9205 | -7/Garrison | Lost 11 parts (1p4n2u4w) 9346 | -7/Garrison | Expanded RIF knowledge: Hotswap 9392 | -7/Garrison | Core integrity fell below 20% 9451 | -7/Garrison | Lost 4 parts (1p1n1u1w) 9563 | -7/Garrison | Garrison Relay disabled 9566 | -7/Garrison | Triggered checkpoint 9598 | -7/Garrison | Lost 3 parts (2n1w) 9679 | -7/Garrison | Garrison Relay disabled 9838 | -7/Garrison | Entered Factory 9838 | -7/Factory | Accompanied by 3 allies 9965 | -7/Factory | Discovered new exit (range 13) 10066 | -7/Factory | Lost 3 allies 10363 | -7/Factory | Build established: Scavenger-Tank 10373 | -7/Factory | Identified exit to Lower Caves 10715 | -7/Factory | Repaired Broken Rnf. Deuterium Engine 10764 | -7/Factory | Entered another Factory area 10764 | -6/Factory | Accompanied by 3 allies 10764 | -6/Factory | Evolved 2 slots: Propulsion x1, Utility x1 10839 | -6/Factory | Build established: Bothacker-Mutant 11291 | -6/Factory | Build established: Bothacker-Tank 11966 | -6/Factory | Discovered new exit (range 11) 12107 | -6/Factory | Identified exit to Lower Caves 12357 | -6/Factory | Found Prototype Processor 12357 | -6/Factory | Identified Exp. Targeting Computer 12636 | -6/Factory | Build established: Hauler-Gunner 12914 | -6/Factory | Lost 24 parts (1p1n9u13w) 13191 | -6/Factory | Build established: Scavenger-Tank 14157 | -6/Factory | Repaired Broken Weapon Cycler 14385 | -6/Factory | Spotted B-75 Beast 14463 | -6/Factory | Identified exit to Garrison 14463 | -6/Factory | Entered Garrison 14557 | -6/Garrison | Triggered checkpoint 14574 | -6/Garrison | Garrison Relay disabled 14632 | -6/Garrison | Triggered checkpoint 14688 | -6/Garrison | Discovered new exit (range 5) 14864 | -6/Garrison | Build established: Bothacker-Tank 14989 | -6/Garrison | Spotted B-75 Beast 14996 | -6/Garrison | Triggered checkpoint 15063 | -6/Garrison | Triggered checkpoint 15164 | -6/Garrison | Destroyed B-75 Beast 15189 | -6/Garrison | Triggered checkpoint 15221 | -6/Garrison | Triggered checkpoint 15250 | -6/Garrison | Heavy support dispatched to Factory 15425 | -6/Garrison | Heavy support dispatched to Factory 15450 | -6/Garrison | H-XX Assembler disabled 15489 | -6/Garrison | Found Prototype Device 15564 | -6/Garrison | Build established: Scavenger-Tank 15653 | -6/Garrison | Discovered new exit (range 12) 15682 | -6/Garrison | Expanded RIF knowledge: Command Fork 15713 | -6/Garrison | Triggered checkpoint 15791 | -6/Garrison | Garrison Relay disabled 16069 | -6/Garrison | Triggered checkpoint 16100 | -6/Garrison | Build established: Bothacker-Tank 16143 | -6/Garrison | Garrison Relay disabled 16325 | -6/Garrison | Discovered new exit (range 14) 16378 | -6/Garrison | Phase Generator disabled 16563 | -6/Garrison | Build established: Botlord-Mutant 16597 | -6/Garrison | Garrison Relay disabled 16632 | -6/Garrison | Triggered checkpoint 16656 | -6/Garrison | Discovered new exit (range 12) 16657 | -6/Garrison | Found embedded Infiltrators 16965 | -6/Garrison | Entered Factory 16965 | -6/Factory | Accompanied by 5 allies 17144 | -6/Factory | Garrison activated, responded to threat 17315 | -6/Factory | First assault squad dispatched 17490 | -6/Factory | Discovered new exit (range 15) 17680 | -6/Factory | Garrison activated, responded to threat 17730 | -6/Factory | Build established: Botlord-Gunner 18234 | -6/Factory | Build established: Commander-Gunner 18398 | -6/Factory | Lost 3 allies 18411 | -6/Factory | Garrison activated, responded to threat 18506 | -6/Factory | Identified exit to Garrison 18506 | -6/Factory | Entered Garrison 18604 | -6/Garrison | Triggered checkpoint 18638 | -6/Garrison | Garrison Relay disabled 18845 | -6/Garrison | Lost 5 parts (2n3u) 18860 | -6/Garrison | Triggered checkpoint 18860 | -6/Garrison | Destroyed 9 combat bots 18910 | -6/Garrison | Core integrity fell below 50% 18981 | -6/Garrison | Destroyed 7 combat bots 18988 | -6/Garrison | Triggered checkpoint 19051 | -6/Garrison | Phase Generator disabled 19088 | -6/Garrison | Expanded RIF knowledge: Program Shield 19143 | -6/Garrison | Discovered new exit (range 10) 19145 | -6/Garrison | Build established: Scavenger-Tank 19224 | -6/Garrison | Triggered checkpoint 19226 | -6/Garrison | Garrison Relay disabled 19548 | -6/Garrison | Triggered checkpoint 19744 | -6/Garrison | Discovered new exit (range 11) 19746 | -6/Garrison | Triggered checkpoint 19818 | -6/Garrison | Garrison Relay disabled 19820 | -6/Garrison | Triggered checkpoint 20192 | -6/Garrison | Build established: Tank 20251 | -6/Garrison | Entered Factory 20251 | -5/Factory | Accompanied by 3 allies 20251 | -5/Factory | Evolved 2 slots: Utility x2 20618 | -5/Factory | Fabricated Adv. Cooling System (x1) 20721 | -5/Factory | Lost 12 parts (4n6u2w) 20851 | -5/Factory | First assault squad dispatched 20977 | -5/Factory | Lost 3 parts (2n1u) 20978 | -5/Factory | Destroyed 9 combat bots 21019 | -5/Factory | Build established: Scavenger-Gunner 21157 | -5/Factory | Lost 4 parts (1p1u2w) 21717 | -5/Factory | Discovered new exit (range 14) 21781 | -5/Factory | Lost 4 parts (1u3w) 21904 | -5/Factory | Discovered new exit (range 16) 21970 | -5/Factory | Entered Extension 22125 | -5/Extension | Lost 4 parts (2n1u1w) 22674 | -5/Extension | Build established: Scavenger-Tank 23420 | -5/Extension | Lost 7 allies 23423 | -5/Extension | Spotted B-75 Beast 23434 | -5/Extension | Spotted B-75 Beast 23448 | -5/Extension | Destroyed B-75 Beast 23463 | -5/Extension | Allies destroyed B-75 Beast 23479 | -5/Extension | Lost 3 parts (1n2u) 23893 | -5/Extension | Rescued a captive Derelict 23944 | -5/Extension | Energy Cycler disabled 24095 | -5/Extension | Disrupted transfer network 24671 | -5/Extension | Build established: Commander-Tank 24902 | -5/Extension | Lost 4 allies 25048 | -5/Extension | Core integrity fell below 50% 25121 | -5/Extension | Discovered new exit (range 10) 25123 | -5/Extension | Discovered new exit (range 6) 25391 | -5/Extension | Discovered new exit (range 15) 25569 | -5/Extension | Extracted ID and sensor layout for unrecognized location from A7's data core 25993 | -5/Extension | Entered Cetus 25993 | -5/Cetus | Accompanied by 8 allies 26023 | -5/Cetus | Spotted Cetus Guard 26023 | -5/Cetus | Spotted Cetus Guard 26034 | -5/Cetus | Destroyed Cetus Guard 26034 | -5/Cetus | Allies destroyed Cetus Guard 26034 | -5/Cetus | Spotted Cetus Guard 26034 | -5/Cetus | Spotted Cetus Guard 26038 | -5/Cetus | Allies destroyed Cetus Guard 26044 | -5/Cetus | Allies destroyed Cetus Guard 26063 | -5/Cetus | Build established: Scavenger-Tank 26069 | -5/Cetus | Lost 6 allies 26316 | -5/Cetus | Discovered new exit (range 15) 26359 | -5/Cetus | Spotted Cetus Guard 26359 | -5/Cetus | Spotted Cetus Guard 26365 | -5/Cetus | Destroyed Cetus Guard 26366 | -5/Cetus | Spotted Cetus Guard 26367 | -5/Cetus | Spotted Cetus Guard 26379 | -5/Cetus | Destroyed Cetus Guard 26384 | -5/Cetus | Destroyed Cetus Guard 26392 | -5/Cetus | Destroyed Cetus Guard 26423 | -5/Cetus | Discovered new exit (range 15) 26432 | -5/Cetus | Met Revision 17 26627 | -5/Cetus | Entered Archives 26729 | -5/Archives | Unable to access archive contents 26732 | -5/Archives | Discovered new exit (range 16) 26745 | -5/Archives | Unable to access archive contents 26919 | -5/Archives | Discovered new exit (range 16) 26944 | -5/Archives | Discovered new exit (range 15) 27532 | -5/Archives | Build established: Scavenger-Mutant 27597 | -5/Archives | Entered Hub_04(d) 27597 | -5/Hub_04(d) | Accompanied by 2 allies 27807 | -5/Hub_04(d) | Discovered new exit (range 9) 27807 | -5/Hub_04(d) | Network Hub disabled 27808 | -5/Hub_04(d) | Spotted Lightning 27808 | -5/Hub_04(d) | Spotted Lightning 27808 | -5/Hub_04(d) | Spotted Lightning 27828 | -5/Hub_04(d) | Destroyed Lightning 27867 | -5/Hub_04(d) | System corruption reached 10% 27940 | -5/Hub_04(d) | Core integrity fell below 20% 27958 | -5/Hub_04(d) | Destroyed Lightning 27961 | -5/Hub_04(d) | Lost 15 parts (1p2n9u3w) 28096 | -5/Hub_04(d) | Lost 7 parts (2n3u2w) 28106 | -5/Hub_04(d) | Entered Factory 28106 | -4/Factory | Evolved 2 slots: Utility x2 28347 | -4/Factory | Lost 3 parts (1p1n1u) 28366 | -4/Factory | Build established: Scavenger-Gunner 28540 | -4/Factory | Lost 11 parts (4n4u3w) 28566 | -4/Factory | Identified exit to Research 28718 | -4/Factory | Discovered new exit (range 4) 28839 | -4/Factory | Core integrity fell below 50% 28845 | -4/Factory | Identified exit to Upper Caves 28995 | -4/Factory | System corruption reached 10% 29015 | -4/Factory | Entered Research 29015 | -3/Research | Evolved 2 slots: Propulsion x2 29046 | -3/Research | Lost 7 parts (1p3n2u1w) 29049 | -3/Research | Found Unknown Launcher 29049 | -3/Research | Identified Fusion Bomb Launcher 29051 | -3/Research | Found Fusion Bomb Launcher 29052 | -3/Research | Found Fusion Bomb Launcher 29054 | -3/Research | Found Fusion Bomb Launcher 29215 | -3/Research | Revision forces began assault on 0b10 29262 | -3/Research | Spotted B-86 Titan 29279 | -3/Research | Met up with Revision 17++ 29309 | -3/Research | Destroyed B-86 Titan 29612 | -3/Research | Build established: Hacker-Gunner 29715 | -3/Research | Research terminal network offline 29912 | -3/Research | Discovered new exit (range 15) 29926 | -3/Research | Identified exit to Research 30340 | -3/Research | Spotted Striker 30359 | -3/Research | Murdered Revision 17++ 30359 | -3/Research | Destroyed Revision 17++ 30449 | -3/Research | Spotted Striker 30454 | -3/Research | Spotted Striker 30487 | -3/Research | System corruption reached 10% 30514 | -3/Research | Destroyed Striker 30551 | -3/Research | Lost 8 parts (6u2w) 30585 | -3/Research | Spotted Executioner 30591 | -3/Research | Spotted Striker 30598 | -3/Research | Identified exit to Garrison 30598 | -3/Research | Entered Garrison 30815 | -3/Garrison | Lost 3 parts (1n2u) 30830 | -3/Garrison | Triggered checkpoint 31051 | -3/Garrison | Build established: Scavenger-Gunner 31062 | -3/Garrison | Expanded RIF knowledge: Autoassimilate 31133 | -3/Garrison | Garrison Relay disabled 31214 | -3/Garrison | Triggered checkpoint 31232 | -3/Garrison | Spotted B-86 Titan 31252 | -3/Garrison | Core integrity fell below 50% 31272 | -3/Garrison | Destroyed 17 combat bots 31275 | -3/Garrison | Triggered checkpoint 31280 | -3/Garrison | Destroyed B-86 Titan 31308 | -3/Garrison | Lost 13 parts (1p4n5u3w) 31545 | -3/Garrison | Triggered checkpoint 31784 | -3/Garrison | Triggered checkpoint 31836 | -3/Garrison | Garrison Relay disabled 31864 | -3/Garrison | Discovered exit to Research (range 69) 31864 | -3/Garrison | Discovered exit to Research (range 7) 31864 | -3/Garrison | Discovered exit to Research (range 59) 32026 | -3/Garrison | Triggered checkpoint 32039 | -3/Garrison | Garrison Relay disabled 32232 | -3/Garrison | Phase Generator disabled 32320 | -3/Garrison | Rescued a captive Derelict 32321 | -3/Garrison | Rescued a captive Derelict 32368 | -3/Garrison | Garrison Relay disabled 32382 | -3/Garrison | Triggered checkpoint 32442 | -3/Garrison | Entered Research 32442 | -2/Research | Accompanied by 2 allies 32442 | -2/Research | Evolved 2 slots: Power x1, Utility x1 32476 | -2/Research | Garrison activated, responded to threat 32644 | -2/Research | Lost 4 allies 32866 | -2/Research | System corruption reached 10% 32914 | -2/Research | Identified exit to Garrison 32914 | -2/Research | Entered Garrison 32914 | -2/Garrison | Accompanied by 2 allies 32943 | -2/Garrison | Expanded RIF knowledge: Command Fork 32976 | -2/Garrison | Triggered checkpoint 33005 | -2/Garrison | Garrison Relay disabled 33118 | -2/Garrison | Triggered checkpoint 33120 | -2/Garrison | Triggered checkpoint 33120 | -2/Garrison | Spotted B-90 Cyclops 33121 | -2/Garrison | Autoassimilated Cyclops 9a with RIF 33161 | -2/Garrison | Lost 3 allies 33194 | -2/Garrison | Triggered checkpoint 33205 | -2/Garrison | Garrison Relay disabled 33248 | -2/Garrison | Discovered new exit (range 14) 33268 | -2/Garrison | Expanded RIF knowledge: Autooverride 33322 | -2/Garrison | Triggered checkpoint 33400 | -2/Garrison | Garrison Relay disabled 33408 | -2/Garrison | Spotted B-90 Cyclops 33467 | -2/Garrison | Discovered new exit (range 10) 33481 | -2/Garrison | Discovered new exit (range 5) 33482 | -2/Garrison | Triggered checkpoint 33526 | -2/Garrison | Entered Research 33526 | -2/Research | Accompanied by 5 allies 33711 | -2/Research | Build established: Botlord-Gunner 33785 | -2/Research | Lost 6 parts (2p2n1u1w) 33800 | -2/Research | Lost 3 allies 33836 | -2/Research | Found Prototype Device 33836 | -2/Research | Identified Active Sensor Suite 33857 | -2/Research | Lost 4 parts (2n2w) 33933 | -2/Research | System corruption reached 30% 34009 | -2/Research | Released all parts (7) 34014 | -2/Research | Core integrity fell below 50% 34043 | -2/Research | Core integrity fell below 20% 34069 | -2/Research | Spotted B-90 Cyclops 34072 | -2/Research | Lost 22 parts (2p8n4u8w) 34093 | -2/Research | Found Unknown Protection 34093 | -2/Research | Identified Adv. Powered Armor 34095 | -2/Research | Found Adv. Powered Armor 34100 | -2/Research | Destroyed by S-43 Plague with Heavy Machine Gun Last Messages --------------- 34065_ Slug penetrates U-05 Engineer. 34065_ U-05 Engineer destroyed. 34065_ Penetrated by Slug. 34066_ Acquired 29 matter. 34067_ Acquired Centrium Leg. 34067_ K-01 Serf collects debris. 34068_ Penetrated by Slug. 34068_ Slug penetrates Wall. 34068_ Penetrated by Slug. 34069_ >RA7/I|:U>8 ISMB5 PT MBQAQPC|SC 34078_ Slug penetrates Wall. 34080_ Detecting nearby Garrison Access. 34081_ Acquired Prototype Leg. 34081_ Identified Adv. Myomer Leg. 34082_ Slug penetrates Wall. 34085_ AQ IJD/MFS>#JSNVX%YFD6 34091_ ALERT: Security rotation in progress. 34093_ Acquired Unknown Protection. 34093_ Identified Adv. Powered Armor. 34095_ Acquired Adv. Powered Armor. Map ----- +----------------------------------------------------+ | ?????????????????????????????????????????????????? | | ?????????????????????????????????????????????????? | | ?????????????????????????????????????????????????? | | ?????????????????????????????????????????????????? | | ?????????????????????????????????????????????????? | | ?????????????????????????????????????????????????? | | ?????????????????????????????????????????????????? | | ?????????????????????????????????????????????????? | | ?????????????????????????????????????????????????? | | ?????????????????????????????????????????????????? | | ?????????????????????????????????????????????????? | | ?????????????????????????????????????????????????? | | ?????????????????????????????????????????????????? | | ?????????????????????????????????????????????????? | | ?????????????????????????????????????????????????? | | ?????????????#######?????????????????????????????? | | ?????????????# #?????????????????????????????? | | #########+#### #?????????????????????????????? | | # #?????????????????????????????? | | # ##########????????????????????? | | + ## #????????????????????? | | # ## #????????????????????? | | ############## ] ## #????????????????????? | | ?????????????# ## ! #????????????????????? | | ################+#### #????????????????????? | | # s @ #????????????????????? | | #s #????????????????????? | | /s #????????????????????? | | "" """ # #????????????????????? | | """ """" !== #t #????????????????????? | | """ """" == # ] #????????????????????? | | """ """ == ###g#####????????????????????? | | ??? ?R ?????????????????????????? | | ???? ?????????????????????????? | | ?? ?????????????????????????? | | "" ? ??????????????????????????? | | """ ? ###+######+?????????????????????????? | | ??? ? """ ????????????????????????????????????? | | ?????????" ????????????????????????????????????? | | ?????????" ?????????????????????????????????????? | | ?????????????????????????????????????????????????? | | ?????????????????????????????????????????????????? | | ?????????????????????????????????????????????????? | | ?????????????????????????????????????????????????? | | ?????????????????????????????????????????????????? | | ?????????????????????????????????????????????????? | | ?????????????????????????????????????????????????? | | ?????????????????????????????????????????????????? | | ?????????????????????????????????????????????????? | | ?????????????????????????????????????????????????? | +----------------------------------------------------+ Best States ------------- Heat Dissipation 160 Coolant Potential 80 Energy Generation 37 Energy Capacity 390 Matter Stores 300 Matter Capacity 300 Sight Range 16 Robot Scan Range 20 Terrain Scan Range 24 Terrain Scan Density 10 Cloak Strength 5 Power Amplification 30 Additional Mass Support 9 Armor Coverage 2850 Resistance: TH 10 Resistance: EM 25 Core Shielding 30 Propulsion Shielding 33 Utility Shielding 66 Weapon Cycling 30 Phase Shifting 5 Evasion (%) 75 Targeting Accuracy 30 Target Analysis 6 Recoil Reduction 6 Kinecelleration 40 Offensive Hacking 24 Defensive Hacking 24 Relay Coupler Types 5 Relay Coupler Value 136 Item Schematics ----------------- Imp. Diametric Drive | -3/Research | Scanalyzed Q-thruster | -3/Research | Scanalyzed Robot Schematics ------------------ None Fabricated ------------ Adv. Cooling System | x1 | -5/Factory | Preloaded Alien Tech Used ----------------- None Achievements -------------- Beloved Revolutionary Research Challenges ------------ None Game ------ Seed TeslaSigixDesublimator Manual? 0 Play Time 05:43:10 Cumulative 181.5 hours Start 2024.04.13 @ 08:35:26 End 2024.04.14 @ 00:49:01 Sessions 5 Manual Loads 0 Difficulty Rogue Special Mode None Game No. 150 Rogue 150 Adventurer 0 Explorer 0 Win Type - Total 4 Types 4/0/0/0/0/0/0/0/0 Lore% 69 Gallery% 76 Achievement% 64 Wizard Run 0 Options --------- Layout 2 ASCII 1 Keyboard 0 Movement Mouse Keybinds 0 Fullscreen 2 Font 24/Smallcaps Map View 50x44 Zoom Use 0% Tactical HUD 1 Map Filters NONE Filters NONE Steam 1 RUN: 0858d5c2-58e9-4adf-8fba-fc76eb39f566